[Event "*** SCC Grand Prix: Titled Tuesday Blitz"]
[Site "Chess.com"]
[Date "2020.07.14"]
[Round "5"]
[White "TST2014"]
[Black "chessfrendz"]
[Result "1-0"]
[WhiteElo "2490"]
[BlackElo "2257"]
[TimeControl "180+1"]
[EndTime "10:55:49 PDT"]
[Termination "TST2014 won by resignation"]

1. d4 {[%clk 0:02:48.2]} 1... d5 {[%clk 0:02:58.7]} 2. c4 {[%clk 0:02:48]} 2...
e6 {[%clk 0:02:58]} 3. Nf3 {[%clk 0:02:47.9]} 3... Nf6 {[%clk 0:02:57.4]} 4. Nc3
{[%clk 0:02:47.9]} 4... c6 {[%clk 0:02:56.8]} 5. e3 {[%clk 0:02:47.5]} 5... Nbd7
{[%clk 0:02:56]} 6. Qc2 {[%clk 0:02:47.8]} 6... Be7 {[%clk 0:02:55.5]} 7. Be2
{[%clk 0:02:48.1]} 7... O-O {[%clk 0:02:55.2]} 8. O-O {[%clk 0:02:48.7]} 8...
dxc4 {[%clk 0:02:53.9]} 9. a4 {[%clk 0:02:48.1]} 9... b6 {[%clk 0:02:52.9]} 10.
Bxc4 {[%clk 0:02:46.9]} 10... Bb7 {[%clk 0:02:51.9]} 11. e4 {[%clk 0:02:47.1]}
11... Rc8 {[%clk 0:02:46.9]} 12. Rd1 {[%clk 0:02:40.9]} 12... Qc7 {[%clk
0:02:45.5]} 13. e5 {[%clk 0:02:30.9]} 13... Nd5 {[%clk 0:02:44.3]} 14. Qe4
{[%clk 0:02:18.2]} 14... Nxc3 {[%clk 0:02:39.4]} 15. bxc3 {[%clk 0:02:17.2]}
15... c5 {[%clk 0:02:39.8]} 16. d5 {[%clk 0:02:09.9]} 16... exd5 {[%clk
0:02:38.5]} 17. Bxd5 {[%clk 0:02:08.5]} 17... Bxd5 {[%clk 0:02:38.3]} 18. Rxd5
{[%clk 0:02:05.7]} 18... Qc6 {[%clk 0:02:24.9]} 19. c4 {[%clk 0:01:55.8]} 19...
Rfe8 {[%clk 0:02:23.4]} 20. Bb2 {[%clk 0:01:50.1]} 20... Nf8 {[%clk 0:02:16.9]}
21. h4 {[%clk 0:01:31.7]} 21... Ne6 {[%clk 0:02:15.9]} 22. h5 {[%clk 0:01:29.7]}
22... h6 {[%clk 0:02:15.6]} 23. Qg4 {[%clk 0:01:28.8]} 23... Rcd8 {[%clk
0:02:11.7]} 24. Qe4 {[%clk 0:01:16.3]} 24... Nc7 {[%clk 0:02:01.1]} 25. Rd4
{[%clk 0:01:07]} 25... Qxe4 {[%clk 0:01:57]} 26. Rxe4 {[%clk 0:01:07.9]} 26...
Ne6 {[%clk 0:01:55.7]} 27. a5 {[%clk 0:01:07.2]} 27... Rd3 {[%clk 0:01:53.1]}
28. axb6 {[%clk 0:01:06.4]} 28... axb6 {[%clk 0:01:52.4]} 29. Ra7 {[%clk
0:01:00.2]} 29... Rb3 {[%clk 0:01:52]} 30. Bc1 {[%clk 0:00:56.4]} 30... Rb1
{[%clk 0:01:40]} 31. Re1 {[%clk 0:00:55.5]} 31... Kf8 {[%clk 0:01:22.5]} 32. Nd2
{[%clk 0:00:54.8]} 32... Rb4 {[%clk 0:01:13.9]} 33. Ba3 {[%clk 0:00:54.7]} 33...
Rd8 {[%clk 0:01:09.8]} 34. Bxb4 {[%clk 0:00:54]} 34... cxb4 {[%clk 0:01:09.3]}
35. Nb3 {[%clk 0:00:52.1]} 35... Rd3 {[%clk 0:01:06.1]} 36. Rb1 {[%clk
0:00:52.1]} 36... Rc3 {[%clk 0:00:59.6]} 37. Ra8+ {[%clk 0:00:50.9]} 37... Bd8
{[%clk 0:00:56.9]} 38. Nd4 {[%clk 0:00:49.7]} 38... Ke7 {[%clk 0:00:47.3]} 39.
Nc6+ {[%clk 0:00:49.5]} 39... Kd7 {[%clk 0:00:45.9]} 40. Nxd8 {[%clk 0:00:49.5]}
40... Nxd8 {[%clk 0:00:44.9]} 41. Rd1+ {[%clk 0:00:49.9]} 41... Kc6 {[%clk
0:00:43.5]} 42. Rc8+ {[%clk 0:00:48.5]} 42... Kb7 {[%clk 0:00:42.2]} 43. Rdxd8
{[%clk 0:00:47.9]} 43... b3 {[%clk 0:00:41.5]} 44. Rb8+ {[%clk 0:00:47.9]} 44...
Kc6 {[%clk 0:00:38.6]} 45. Rd6+ {[%clk 0:00:47.8]} 45... Kc5 {[%clk 0:00:38.7]}
46. Rdxb6 {[%clk 0:00:47.9]} 46... Kxc4 {[%clk 0:00:38.5]} 47. Rb4+ {[%clk
0:00:48]} 47... Kd3 {[%clk 0:00:38.1]} 48. Rxb3 {[%clk 0:00:48.2]} 1-0

[Event "*** SCC Grand Prix: Titled Tuesday Blitz"]
[Site "Chess.com"]
[Date "2020.07.14"]
[Round "5"]
[White "Ceejay271"]
[Black "Ashedu66"]
[Result "0-1"]
[WhiteElo "2329"]
[BlackElo "2192"]
[TimeControl "180+1"]
[EndTime "10:55:49 PDT"]
[Termination "Ashedu66 won by checkmate"]

1. d4 {[%clk 0:03:00.9]} 1... d5 {[%clk 0:02:59.5]} 2. Nf3 {[%clk 0:02:59.9]}
2... Nf6 {[%clk 0:02:59.6]} 3. c4 {[%clk 0:02:59.8]} 3... c6 {[%clk 0:02:59.7]}
4. g3 {[%clk 0:02:58.2]} 4... e6 {[%clk 0:02:58.9]} 5. Bg2 {[%clk 0:02:58.2]}
5... Nbd7 {[%clk 0:02:58.9]} 6. O-O {[%clk 0:02:58.9]} 6... Be7 {[%clk
0:02:59.1]} 7. Qd3 {[%clk 0:02:58.7]} 7... O-O {[%clk 0:02:57.1]} 8. Nc3 {[%clk
0:02:58.5]} 8... b6 {[%clk 0:02:56.1]} 9. e4 {[%clk 0:02:58.6]} 9... a5 {[%clk
0:02:53.9]} 10. e5 {[%clk 0:02:54.3]} 10... Ne8 {[%clk 0:02:51.4]} 11. Re1
{[%clk 0:02:52.3]} 11... Ba6 {[%clk 0:02:47]} 12. b3 {[%clk 0:02:49.2]} 12...
Rc8 {[%clk 0:02:38.2]} 13. Bf1 {[%clk 0:02:35.8]} 13... c5 {[%clk 0:02:33.1]}
14. dxc5 {[%clk 0:02:18.8]} 14... Nxc5 {[%clk 0:02:25.4]} 15. Qc2 {[%clk
0:02:02.3]} 15... Nc7 {[%clk 0:01:44.2]} 16. Rd1 {[%clk 0:01:53.7]} 16... Qe8
{[%clk 0:01:15.3]} 17. cxd5 {[%clk 0:01:47.1]} 17... Bxf1 {[%clk 0:01:07.8]} 18.
Kxf1 {[%clk 0:01:45.1]} 18... Nxd5 {[%clk 0:01:03.8]} 19. Nxd5 {[%clk
0:01:44.6]} 19... exd5 {[%clk 0:01:00.3]} 20. Rxd5 {[%clk 0:01:44]} 20... Qc6
{[%clk 0:00:40.5]} 21. Qd1 {[%clk 0:01:43.3]} 21... Rfd8 {[%clk 0:00:37]} 22.
Rxd8+ {[%clk 0:01:42.8]} 22... Rxd8 {[%clk 0:00:36.9]} 23. Qe2 {[%clk
0:01:43.5]} 23... Rd3 {[%clk 0:00:15.3]} 24. Be3 {[%clk 0:01:41.9]} 24... Qd5
{[%clk 0:00:15.2]} 25. Rc1 {[%clk 0:01:31.2]} 25... h6 {[%clk 0:00:13.8]} 26. h4
{[%clk 0:01:27.1]} 26... Ne4 {[%clk 0:00:13]} 27. Ne1 {[%clk 0:01:14.2]} 27...
Nd2+ {[%clk 0:00:06.3]} 28. Kg1 {[%clk 0:01:08.1]} 28... Rxe3 {[%clk 0:00:05.2]}
29. Qxe3 {[%clk 0:00:59.5]} 29... Bc5 {[%clk 0:00:04.2]} 30. Qe2 {[%clk
0:00:54.5]} 30... Ne4 {[%clk 0:00:04.1]} 31. Nd3 {[%clk 0:00:53.3]} 31... Nxg3
{[%clk 0:00:04.1]} 32. Qd1 {[%clk 0:00:32.5]} 32... Qh1# {[%clk 0:00:03]} 0-1

[Event "*** SCC Grand Prix: Titled Tuesday Blitz"]
[Site "Chess.com"]
[Date "2020.07.14"]
[Round "5"]
[White "Raja3401"]
[Black "arminmusovic"]
[Result "1-0"]
[WhiteElo "2777"]
[BlackElo "2556"]
[TimeControl "180+1"]
[EndTime "10:55:51 PDT"]
[Termination "Raja3401 won by resignation"]

1. e4 {[%clk 0:03:00.9]} 1... c6 {[%clk 0:03:00.2]} 2. Nf3 {[%clk 0:03:00.7]}
2... d5 {[%clk 0:03:01.1]} 3. Nc3 {[%clk 0:03:01.3]} 3... dxe4 {[%clk
0:03:01.1]} 4. Nxe4 {[%clk 0:03:02.2]} 4... Nf6 {[%clk 0:03:01.9]} 5. Qe2 {[%clk
0:03:02.8]} 5... Nxe4 {[%clk 0:03:02.5]} 6. Qxe4 {[%clk 0:03:03.7]} 6... Qd5
{[%clk 0:03:03.4]} 7. Qf4 {[%clk 0:03:04]} 7... Qf5 {[%clk 0:03:02.8]} 8. Qe3
{[%clk 0:03:04.7]} 8... Qe6 {[%clk 0:03:03]} 9. b3 {[%clk 0:03:05]} 9... Qxe3+
{[%clk 0:03:02.6]} 10. fxe3 {[%clk 0:03:05.9]} 10... Nd7 {[%clk 0:03:03.1]} 11.
Bb2 {[%clk 0:03:06.1]} 11... Nf6 {[%clk 0:03:03]} 12. O-O-O {[%clk 0:03:06.7]}
12... Bg4 {[%clk 0:03:02.3]} 13. Be2 {[%clk 0:02:58]} 13... Ne4 {[%clk 0:02:55]}
14. Rdf1 {[%clk 0:02:51.7]} 14... f6 {[%clk 0:02:48.5]} 15. d3 {[%clk
0:02:51.9]} 15... Nd6 {[%clk 0:02:48.3]} 16. h3 {[%clk 0:02:51.5]} 16... Bd7
{[%clk 0:02:45.5]} 17. g4 {[%clk 0:02:48.6]} 17... O-O-O {[%clk 0:02:43]} 18. e4
{[%clk 0:02:45.9]} 18... Nf7 {[%clk 0:02:33.4]} 19. e5 {[%clk 0:02:36.2]} 19...
c5 {[%clk 0:02:26.6]} 20. Rhg1 {[%clk 0:02:28.8]} 20... h5 {[%clk 0:02:00.3]}
21. a4 {[%clk 0:01:42.1]} 21... a6 {[%clk 0:01:58.4]} 22. Bc3 {[%clk 0:01:39.6]}
22... Kc7 {[%clk 0:01:41]} 23. Re1 {[%clk 0:01:29.5]} 23... hxg4 {[%clk
0:01:32.2]} 24. hxg4 {[%clk 0:01:30.4]} 24... Bc6 {[%clk 0:01:17.3]} 25. e6
{[%clk 0:00:54.8]} 25... Nd6 {[%clk 0:01:16.2]} 26. g5 {[%clk 0:00:49.2]} 26...
Rh3 {[%clk 0:01:03]} 27. Nd2 {[%clk 0:00:43.4]} 27... Nf5 {[%clk 0:00:41.5]} 28.
Bg4 {[%clk 0:00:42.7]} 28... Rg3 {[%clk 0:00:24.1]} 29. Bxf5 {[%clk 0:00:41]}
29... Rxg5 {[%clk 0:00:24.7]} 30. Rxg5 {[%clk 0:00:38.9]} 30... fxg5 {[%clk
0:00:25.6]} 31. Be5+ {[%clk 0:00:39.3]} 31... Kc8 {[%clk 0:00:25.3]} 32. Nc4
{[%clk 0:00:39.8]} 32... b5 {[%clk 0:00:24.9]} 33. Nb6+ {[%clk 0:00:35.8]} 33...
Kb7 {[%clk 0:00:25]} 34. Nd7 {[%clk 0:00:36.7]} 34... g6 {[%clk 0:00:24.2]} 35.
Bg4 {[%clk 0:00:28.4]} 35... bxa4 {[%clk 0:00:23.7]} 36. bxa4 {[%clk 0:00:27.5]}
36... Bxa4 {[%clk 0:00:24.1]} 37. Nxc5+ {[%clk 0:00:27.8]} 37... Kc6 {[%clk
0:00:24.5]} 38. Nxa4 {[%clk 0:00:28.7]} 38... Rxd3 {[%clk 0:00:24.7]} 1-0

[Event "*** SCC Grand Prix: Titled Tuesday Blitz"]
[Site "Chess.com"]
[Date "2020.07.14"]
[Round "5"]
[White "Benjoneliere44"]
[Black "Izoria123"]
[Result "0-1"]
[WhiteElo "2608"]
[BlackElo "2893"]
[TimeControl "180+1"]
[EndTime "10:55:53 PDT"]
[Termination "Izoria123 won by resignation"]

1. d4 {[%clk 0:03:00.9]} 1... d6 {[%clk 0:02:59.8]} 2. c4 {[%clk 0:02:59.8]}
2... e5 {[%clk 0:02:59.3]} 3. Nf3 {[%clk 0:02:59.1]} 3... e4 {[%clk 0:02:58.8]}
4. Ng5 {[%clk 0:02:59.4]} 4... f5 {[%clk 0:02:59.4]} 5. Nh3 {[%clk 0:02:59.2]}
5... Be7 {[%clk 0:02:58.4]} 6. Nf4 {[%clk 0:02:58.2]} 6... Nf6 {[%clk
0:02:57.5]} 7. h4 {[%clk 0:02:56.7]} 7... O-O {[%clk 0:02:55.7]} 8. e3 {[%clk
0:02:56.1]} 8... c5 {[%clk 0:02:53.6]} 9. dxc5 {[%clk 0:02:52.2]} 9... dxc5
{[%clk 0:02:53.1]} 10. Qxd8 {[%clk 0:02:51.1]} 10... Rxd8 {[%clk 0:02:54]} 11.
Nc3 {[%clk 0:02:50.2]} 11... Nc6 {[%clk 0:02:53.7]} 12. a3 {[%clk 0:02:48.4]}
12... Na5 {[%clk 0:02:30.7]} 13. Be2 {[%clk 0:02:36.3]} 13... Nb3 {[%clk
0:02:30]} 14. Rb1 {[%clk 0:02:36.3]} 14... Bd6 {[%clk 0:02:19.2]} 15. g3 {[%clk
0:02:22]} 15... Be5 {[%clk 0:02:18.3]} 16. O-O {[%clk 0:02:13.8]} 16... b6
{[%clk 0:01:57.2]} 17. Ncd5 {[%clk 0:01:52.6]} 17... Kf7 {[%clk 0:01:48.2]} 18.
Nxf6 {[%clk 0:01:47]} 18... Kxf6 {[%clk 0:01:43]} 19. f3 {[%clk 0:01:32.4]}
19... Bxf4 {[%clk 0:01:37.8]} 20. gxf4 {[%clk 0:01:26.1]} 20... Bb7 {[%clk
0:01:37.9]} 21. Kf2 {[%clk 0:01:16.7]} 21... exf3 {[%clk 0:01:26.8]} 22. Bxf3
{[%clk 0:01:17.6]} 22... Bxf3 {[%clk 0:01:26.8]} 23. Kxf3 {[%clk 0:01:18.5]}
23... Rd3 {[%clk 0:01:26]} 24. Ke2 {[%clk 0:00:51.9]} 24... Rad8 {[%clk
0:01:23.6]} 25. h5 {[%clk 0:00:50.8]} 25... R3d6 {[%clk 0:01:00.3]} 26. Rg1
{[%clk 0:00:44.5]} 26... a5 {[%clk 0:00:59.8]} 27. Kf3 {[%clk 0:00:38.3]} 27...
a4 {[%clk 0:00:57.6]} 28. Ke2 {[%clk 0:00:34.2]} 28... Re6 {[%clk 0:00:53.6]}
29. Rd1 {[%clk 0:00:29.8]} 29... Rxd1 {[%clk 0:00:50.5]} 30. Kxd1 {[%clk
0:00:30.7]} 30... Nxc1 {[%clk 0:00:49.7]} 31. Kxc1 {[%clk 0:00:27.5]} 31... Rxe3
{[%clk 0:00:50.2]} 32. Kd2 {[%clk 0:00:26.2]} 32... Re4 {[%clk 0:00:48.9]} 33.
b3 {[%clk 0:00:25]} 33... Rxf4 {[%clk 0:00:45.4]} 34. bxa4 {[%clk 0:00:24.9]}
34... Rxc4 {[%clk 0:00:45.4]} 35. Rxb6+ {[%clk 0:00:25.5]} 35... Kg5 {[%clk
0:00:45.4]} 36. Ra6 {[%clk 0:00:24]} 36... Kxh5 {[%clk 0:00:43.9]} 37. Kd3
{[%clk 0:00:20.3]} 37... Rd4+ {[%clk 0:00:43.3]} 38. Kc3 {[%clk 0:00:19.4]}
38... f4 {[%clk 0:00:43.5]} 39. Ra8 {[%clk 0:00:19.8]} 39... f3 {[%clk
0:00:38.8]} 40. a5 {[%clk 0:00:19.4]} 40... Rf4 {[%clk 0:00:34.6]} 41. Rd8
{[%clk 0:00:18.6]} 41... f2 {[%clk 0:00:34.4]} 42. Rd1 {[%clk 0:00:19.1]} 42...
f1=Q {[%clk 0:00:34.5]} 0-1

[Event "*** SCC Grand Prix: Titled Tuesday Blitz"]
[Site "Chess.com"]
[Date "2020.07.14"]
[Round "5"]
[White "AwareIdea"]
[Black "Alexandercs432"]
[Result "1-0"]
[WhiteElo "2461"]
[BlackElo "2087"]
[TimeControl "180+1"]
[EndTime "10:55:53 PDT"]
[Termination "AwareIdea won by resignation"]

1. c4 {[%clk 0:03:00.9]} 1... Nf6 {[%clk 0:02:59.3]} 2. Nc3 {[%clk 0:02:58.2]}
2... e6 {[%clk 0:02:59.8]} 3. e4 {[%clk 0:02:56.6]} 3... d5 {[%clk 0:02:59.4]}
4. e5 {[%clk 0:02:53]} 4... d4 {[%clk 0:02:59.3]} 5. exf6 {[%clk 0:02:52.4]}
5... dxc3 {[%clk 0:02:59.3]} 6. bxc3 {[%clk 0:02:52.8]} 6... Qxf6 {[%clk
0:02:58.2]} 7. d4 {[%clk 0:02:45.3]} 7... b6 {[%clk 0:02:57.8]} 8. Qf3 {[%clk
0:02:34.2]} 8... Qxf3 {[%clk 0:02:55.7]} 9. Nxf3 {[%clk 0:02:35.1]} 9... Bb7
{[%clk 0:02:55.9]} 10. Be2 {[%clk 0:02:34.3]} 10... Bd6 {[%clk 0:02:55.8]} 11.
O-O {[%clk 0:02:33.5]} 11... O-O {[%clk 0:02:56.4]} 12. Rb1 {[%clk 0:02:31.2]}
12... Nd7 {[%clk 0:02:55.2]} 13. c5 {[%clk 0:02:14.8]} 13... Be4 {[%clk
0:02:46.1]} 14. cxd6 {[%clk 0:01:47.9]} 14... Bxb1 {[%clk 0:02:45.3]} 15. dxc7
{[%clk 0:01:47.9]} 15... Bxa2 {[%clk 0:02:37.9]} 16. Ba6 {[%clk 0:01:43.1]}
16... Rac8 {[%clk 0:02:12.4]} 17. Bf4 {[%clk 0:01:35]} 17... f6 {[%clk
0:01:58.8]} 18. Ra1 {[%clk 0:01:29.6]} 18... Bd5 {[%clk 0:01:56]} 19. Bd6 {[%clk
0:01:25.1]} 19... Rfe8 {[%clk 0:00:51]} 20. Bb5 {[%clk 0:00:53.8]} 20... Nf8
{[%clk 0:00:25.5]} 21. Bxe8 {[%clk 0:00:43.4]} 21... Rxe8 {[%clk 0:00:26.4]} 22.
Rxa7 {[%clk 0:00:43.7]} 22... Nd7 {[%clk 0:00:14.8]} 23. Nd2 {[%clk 0:00:41]}
23... e5 {[%clk 0:00:10.3]} 24. dxe5 {[%clk 0:00:40.3]} 24... Nxe5 {[%clk
0:00:07.7]} 25. Bxe5 {[%clk 0:00:32.4]} 25... fxe5 {[%clk 0:00:06.2]} 26. c4
{[%clk 0:00:27]} 26... Bc6 {[%clk 0:00:05.5]} 27. f3 {[%clk 0:00:23.5]} 27...
Kf7 {[%clk 0:00:04.6]} 28. c8=Q+ {[%clk 0:00:21.9]} 1-0

[Event "*** SCC Grand Prix: Titled Tuesday Blitz"]
[Site "Chess.com"]
[Date "2020.07.14"]
[Round "5"]
[White "SargissyanSargis"]
[Black "aNaartjieZA"]
[Result "0-1"]
[WhiteElo "2301"]
[BlackElo "2489"]
[TimeControl "180+1"]
[EndTime "10:55:55 PDT"]
[Termination "aNaartjieZA won on time"]

1. e4 {[%clk 0:03:00.9]} 1... e6 {[%clk 0:03:00]} 2. d4 {[%clk 0:02:58.5]} 2...
d5 {[%clk 0:03:00.1]} 3. Nc3 {[%clk 0:02:57]} 3... Bb4 {[%clk 0:03:00]} 4. e5
{[%clk 0:02:57.1]} 4... c5 {[%clk 0:02:59.9]} 5. a3 {[%clk 0:02:57.7]} 5...
Bxc3+ {[%clk 0:03:00.1]} 6. bxc3 {[%clk 0:02:58.3]} 6... Ne7 {[%clk 0:03:00.4]}
7. Qg4 {[%clk 0:02:58.5]} 7... Qc7 {[%clk 0:03:00.5]} 8. Bd3 {[%clk 0:02:57.9]}
8... cxd4 {[%clk 0:02:59.3]} 9. Rb1 {[%clk 0:02:50.5]} 9... dxc3 {[%clk
0:02:57.7]} 10. Nf3 {[%clk 0:02:50]} 10... Nbc6 {[%clk 0:02:56.9]} 11. Bf4
{[%clk 0:02:47.1]} 11... Bd7 {[%clk 0:02:52.2]} 12. Qxg7 {[%clk 0:02:44.4]}
12... Rg8 {[%clk 0:02:51.6]} 13. Qxh7 {[%clk 0:02:44.5]} 13... O-O-O {[%clk
0:02:51.4]} 14. Bg3 {[%clk 0:02:43.3]} 14... Rdf8 {[%clk 0:02:46.3]} 15. Qh6
{[%clk 0:02:35]} 15... Ng6 {[%clk 0:02:39.3]} 16. Qe3 {[%clk 0:02:23.7]} 16...
b6 {[%clk 0:02:30.9]} 17. Ba6+ {[%clk 0:02:11.7]} 17... Kb8 {[%clk 0:02:29.6]}
18. Qxc3 {[%clk 0:02:12.3]} 18... Bc8 {[%clk 0:02:16.4]} 19. Bd3 {[%clk
0:01:48.3]} 19... Bb7 {[%clk 0:02:12.8]} 20. Nd4 {[%clk 0:01:39]} 20... Nxd4
{[%clk 0:02:12.4]} 21. Qxd4 {[%clk 0:01:38.4]} 21... Ne7 {[%clk 0:02:09.6]} 22.
O-O {[%clk 0:01:33.6]} 22... Nc6 {[%clk 0:02:09.2]} 23. Qc3 {[%clk 0:01:32.3]}
23... Rc8 {[%clk 0:02:05.8]} 24. Rfe1 {[%clk 0:01:29.5]} 24... Ka8 {[%clk
0:02:01.5]} 25. Qd2 {[%clk 0:01:25.1]} 25... Na5 {[%clk 0:01:56.8]} 26. Qb4
{[%clk 0:01:18.5]} 26... Nc4 {[%clk 0:01:55]} 27. a4 {[%clk 0:01:12.8]} 27...
Na5 {[%clk 0:01:49.5]} 28. Qd6 {[%clk 0:01:06.2]} 28... Qc3 {[%clk 0:01:45.1]}
29. Qe7 {[%clk 0:00:58.7]} 29... Rc7 {[%clk 0:01:44]} 30. Qf6 {[%clk 0:00:56.4]}
30... Nc6 {[%clk 0:01:27.7]} 31. h4 {[%clk 0:00:52.8]} 31... Ne7 {[%clk
0:01:24.5]} 32. h5 {[%clk 0:00:50.1]} 32... Qd4 {[%clk 0:01:23.2]} 33. h6 {[%clk
0:00:41.1]} 33... Rxg3 {[%clk 0:01:15.3]} 34. h7 {[%clk 0:00:41.1]} 34... Rc8
{[%clk 0:01:15]} 35. h8=Q {[%clk 0:00:39.4]} 35... Rxh8 {[%clk 0:01:12.7]} 36.
Qxh8+ {[%clk 0:00:39.5]} 36... Rg8 {[%clk 0:01:11.9]} 37. Qf6 {[%clk 0:00:38.3]}
37... Qg4 {[%clk 0:01:10.6]} 38. g3 {[%clk 0:00:35.4]} 38... d4 {[%clk 0:01:05]}
39. Qxe7 {[%clk 0:00:14.3]} 39... Rh8 {[%clk 0:01:04.3]} 40. Be4 {[%clk
0:00:13.1]} 40... Bxe4 {[%clk 0:01:03.7]} 41. Rxe4 {[%clk 0:00:10.6]} 41... Qxe4
{[%clk 0:01:03.4]} 0-1

[Event "*** SCC Grand Prix: Titled Tuesday Blitz"]
[Site "Chess.com"]
[Date "2020.07.14"]
[Round "5"]
[White "Annawel"]
[Black "doons21"]
[Result "0-1"]
[WhiteElo "2929"]
[BlackElo "2652"]
[TimeControl "180+1"]
[EndTime "10:55:57 PDT"]
[Termination "doons21 won by resignation"]

1. Nf3 {[%clk 0:02:54.1]} 1... Nf6 {[%clk 0:02:59]} 2. b3 {[%clk 0:02:54.1]}
2... g6 {[%clk 0:02:53.8]} 3. Bb2 {[%clk 0:02:54.6]} 3... Bg7 {[%clk 0:02:54.3]}
4. g3 {[%clk 0:02:55.3]} 4... O-O {[%clk 0:02:52.9]} 5. d4 {[%clk 0:02:54.7]}
5... d5 {[%clk 0:02:48.4]} 6. Bg2 {[%clk 0:02:54.7]} 6... Ne4 {[%clk 0:02:48.7]}
7. O-O {[%clk 0:02:54.9]} 7... c5 {[%clk 0:02:48.6]} 8. Nbd2 {[%clk 0:02:49.5]}
8... Nc6 {[%clk 0:02:47.7]} 9. e3 {[%clk 0:02:49.4]} 9... cxd4 {[%clk
0:02:43.1]} 10. Nxd4 {[%clk 0:02:42.7]} 10... Nxd4 {[%clk 0:02:14]} 11. exd4
{[%clk 0:02:43.6]} 11... Bf5 {[%clk 0:01:51.1]} 12. Re1 {[%clk 0:02:43.5]} 12...
Nxd2 {[%clk 0:01:47.6]} 13. Qxd2 {[%clk 0:02:44.4]} 13... h5 {[%clk 0:01:47.2]}
14. c4 {[%clk 0:02:42.6]} 14... dxc4 {[%clk 0:01:39.1]} 15. bxc4 {[%clk
0:02:43.5]} 15... Rc8 {[%clk 0:01:38.9]} 16. Rac1 {[%clk 0:02:42.1]} 16... b6
{[%clk 0:01:39.3]} 17. d5 {[%clk 0:02:34.7]} 17... Qd6 {[%clk 0:01:34.4]} 18.
Re3 {[%clk 0:02:08.9]} 18... Bxb2 {[%clk 0:01:31.8]} 19. Qxb2 {[%clk 0:02:09.8]}
19... Rc7 {[%clk 0:01:20.9]} 20. Bf1 {[%clk 0:02:10.1]} 20... Rfc8 {[%clk
0:01:11.5]} 21. Rce1 {[%clk 0:02:10.4]} 21... Qf6 {[%clk 0:00:54.2]} 22. Qa3
{[%clk 0:02:04.2]} 22... e6 {[%clk 0:00:48.7]} 23. h4 {[%clk 0:01:43.5]} 23...
Rd8 {[%clk 0:00:45.7]} 24. Rd1 {[%clk 0:01:42.3]} 24... Rcd7 {[%clk 0:00:42.5]}
25. Bg2 {[%clk 0:01:40.1]} 25... Kg7 {[%clk 0:00:40.1]} 26. Rd2 {[%clk
0:01:39.8]} 26... Rc7 {[%clk 0:00:35.3]} 27. Qb4 {[%clk 0:01:34.7]} 27... Rdc8
{[%clk 0:00:34]} 28. Bf1 {[%clk 0:01:32.9]} 28... exd5 {[%clk 0:00:32.8]} 29.
cxd5 {[%clk 0:01:32]} 29... Rc1 {[%clk 0:00:33.2]} 30. Rde2 {[%clk 0:01:20.5]}
30... Rb1 {[%clk 0:00:32.9]} 31. Qf4 {[%clk 0:01:05.5]} 31... Rcc1 {[%clk
0:00:30.5]} 32. Re1 {[%clk 0:00:28.1]} 32... Rxe1 {[%clk 0:00:30.3]} 33. Rxe1
{[%clk 0:00:29]} 33... Rxe1 {[%clk 0:00:30.6]} 34. Qxf5 {[%clk 0:00:29.8]} 34...
Qxf5 {[%clk 0:00:29.3]} 0-1

[Event "*** SCC Grand Prix: Titled Tuesday Blitz"]
[Site "Chess.com"]
[Date "2020.07.14"]
[Round "5"]
[White "boasovietica"]
[Black "econpower"]
[Result "0-1"]
[WhiteElo "2472"]
[BlackElo "2675"]
[TimeControl "180+1"]
[EndTime "10:55:57 PDT"]
[Termination "econpower won on time"]

1. e4 {[%clk 0:03:00.9]} 1... d6 {[%clk 0:03:00.1]} 2. d4 {[%clk 0:03:00.4]}
2... Nf6 {[%clk 0:03:00.3]} 3. f3 {[%clk 0:03:00.2]} 3... e5 {[%clk 0:03:00.4]}
4. Ne2 {[%clk 0:02:59.6]} 4... Be7 {[%clk 0:02:58.8]} 5. c4 {[%clk 0:02:58.9]}
5... O-O {[%clk 0:02:57.2]} 6. Nbc3 {[%clk 0:02:59.3]} 6... c5 {[%clk 0:02:54]}
7. d5 {[%clk 0:02:42.2]} 7... Ne8 {[%clk 0:02:52.1]} 8. Be3 {[%clk 0:02:41.5]}
8... Bg5 {[%clk 0:02:51.6]} 9. Qd2 {[%clk 0:02:41.2]} 9... Bxe3 {[%clk
0:02:51.5]} 10. Qxe3 {[%clk 0:02:41.3]} 10... a6 {[%clk 0:02:50.7]} 11. Nc1
{[%clk 0:02:37.3]} 11... Nd7 {[%clk 0:02:22.8]} 12. Be2 {[%clk 0:02:30.4]} 12...
g6 {[%clk 0:02:11.3]} 13. O-O {[%clk 0:02:25.4]} 13... f5 {[%clk 0:02:10.3]} 14.
f4 {[%clk 0:02:14.5]} 14... Ng7 {[%clk 0:02:07.4]} 15. Nd3 {[%clk 0:02:09.9]}
15... Qe7 {[%clk 0:01:59.4]} 16. Rae1 {[%clk 0:01:59.4]} 16... b5 {[%clk
0:01:32.1]} 17. cxb5 {[%clk 0:01:47.3]} 17... axb5 {[%clk 0:01:32]} 18. Nxb5
{[%clk 0:01:43.9]} 18... fxe4 {[%clk 0:01:27.2]} 19. Qxe4 {[%clk 0:01:41.1]}
19... Nf6 {[%clk 0:01:23.3]} 20. Qc4 {[%clk 0:01:39.4]} 20... e4 {[%clk
0:01:20.4]} 21. Ne5 {[%clk 0:00:59.2]} 21... Nf5 {[%clk 0:00:46.8]} 22. Nc6
{[%clk 0:00:52.8]} 22... Qd7 {[%clk 0:00:37.9]} 23. g4 {[%clk 0:00:40.3]} 23...
Ne3 {[%clk 0:00:37.8]} 24. Qc3 {[%clk 0:00:32.6]} 24... Nxf1 {[%clk 0:00:37.6]}
25. Rxf1 {[%clk 0:00:31.9]} 25... Nxd5 {[%clk 0:00:33]} 26. Qb3 {[%clk
0:00:21.1]} 26... Qxc6 {[%clk 0:00:33.2]} 27. Bc4 {[%clk 0:00:19.5]} 27... Be6
{[%clk 0:00:33.8]} 28. Nc3 {[%clk 0:00:11.4]} 28... Rab8 {[%clk 0:00:21]} 29.
Bxd5 {[%clk 0:00:02.6]} 29... Rxb3 {[%clk 0:00:20.9]} 30. Bxc6 {[%clk 0:00:01]}
30... Rxb2 {[%clk 0:00:21.4]} 0-1